bitfinex/quotes_BTCUSD_20230906
["timestamp","ask_amount","ask_price","bid_price","bid_amount"]
[1693988008298,0.004,25738.0,25737.0,3.13235186]
[1693988008870,0.004,25738.0,25737.0,2.35526086]
[1693988009502,0.004,25738.0,25737.0,3.13235186]
[1693988014987,0.004,25738.0,25737.0,2.35526086]
[1693988015558,0.004,25738.0,25737.0,3.13235186]
[1693988021039,0.004,25738.0,25737.0,4.25225742]
[1693988021700,0.004,25738.0,25737.0,3.13235186]
[1693988022138,0.004,25738.0,25737.0,4.25225722]
[1693988024005,0.004,25738.0,25737.0,4.63890249]
[1693988024680,0.004,25738.0,25737.0,3.51899713]
[1693988027107,0.004,25738.0,25737.0,4.6389025]
[1693988027512,0.004,25738.0,25737.0,4.25225723]
[1693988030621,0.004,25738.0,25737.0,4.25225723]
[1693988033217,0.004,25738.0,25737.0,4.37305723]
[1693988035738,0.004,25738.0,25737.0,3.25315186]
[1693988035917,0.004,25738.0,25737.0,4.37305116]
[1693988043216,0.004,25738.0,25737.0,4.25225116]
[1693988043424,0.004,25738.0,25737.0,4.63889643]
[1693988044192,0.004,25738.0,25737.0,4.25225116]
[1693988045888,0.004,25738.0,25737.0,3.47516016]
[1693988046453,0.004,25738.0,25737.0,4.25225116]
[1693988046849,0.004,25738.0,25737.0,3.47516016]
[1693988048415,0.004,25738.0,25737.0,4.25225116]
[1693988050005,0.004,25738.0,25737.0,3.47516016]
[1693988051285,0.004,25738.0,25737.0,4.25225116]
[1693988051932,0.004,25738.0,25737.0,4.25225379]
[1693988053447,0.004,25738.0,25737.0,3.47516279]
[1693988054060,0.004,25738.0,25737.0,4.25225379]
[1693988054895,0.004,25738.0,25737.0,3.47516279]
[1693988055511,0.004,25738.0,25737.0,1.14388979]
[1693988055700,0.004,25738.0,25737.0,3.47516279]
[1693988056479,0.004,25738.0,25737.0,4.63889906]
[1693988056909,0.004,25738.0,25737.0,4.25225379]
[1693988059860,0.004,25738.0,25737.0,3.47516279]
[1693988060111,0.004,25738.0,25737.0,2.35526086]
[1693988063289,0.004,25738.0,25737.0,3.13235186]
[1693988063892,0.004,25738.0,25737.0,2.35526086]
[1693988064669,0.004,25738.0,25737.0,2.52986213]
[1693988065267,0.004,25738.0,25737.0,3.30695313]
[1693988065467,0.004,25738.0,25737.0,3.13235186]
[1693988089574,0.004,25738.0,25737.0,4.25225546]
[1693988091696,0.004,25738.0,25737.0,4.25225548]
[1693988093799,0.004,25738.0,25737.0,4.91435886]
[1693988093997,0.28104076,25742.0,25741.0,0.02398786]
[1693988093998,0.04918351,25742.0,25741.0,0.02398786]
[1693988094246,0.04918351,25742.0,25741.0,4.18429597]
[1693988094454,1.0,25744.0,25741.0,5.53600978]
[1693988094626,0.07567948,25742.0,25741.0,4.45014124]
[1693988094814,1.0,25744.0,25741.0,4.45014124]
[1693988094815,1.0,25744.0,25741.0,4.41628313]
[1693988095009,1.0,25744.0,25743.0,2.33073]
[1693988095235,1.0,25744.0,25743.0,3.10764]
[1693988095863,1.0,25744.0,25743.0,3.13162786]
[1693988096463,1.0,25744.0,25743.0,3.51827313]
[1693988096662,1.0,25744.0,25743.0,3.63907313]
[1693988096841,1.0,25744.0,25743.0,2.86216313]
[1693988097017,1.0,25744.0,25743.0,3.48580617]
[1693988097722,1.005,25744.0,25743.0,3.1031609]
[1693988105612,1.005,25744.0,25743.0,2.9823609]
[1693988106450,1.08073625,25744.0,25743.0,2.9823609]
[1693988119226,1.08073625,25744.0,25743.0,2.9823609]
[1693988142431,1.08073625,25744.0,25743.0,3.1031609]
[1693988142766,1.005,25744.0,25743.0,3.1031609]
[1693988143172,1.0852016,25744.0,25743.0,3.48980617]
[1693988155885,1.0852016,25744.0,25743.0,3.87645144]
[1693988163313,1.2752016,25744.0,25743.0,3.87645144]
[1693988167692,1.2752016,25744.0,25743.0,3.1031609]
[1693988192406,1.2752016,25744.0,25743.0,3.13419863]
[1693988194187,1.2702016,25744.0,25743.0,3.13419863]
[1693988204997,1.2702016,25744.0,25743.0,4.25386876]
[1693988207801,1.2702016,25744.0,25743.0,3.13419863]
[1693988208838,1.2702016,25744.0,25743.0,3.5208439]
[1693988216434,1.2702016,25744.0,25743.0,4.6405123]
[1693988216597,1.2702016,25744.0,25743.0,3.5208439]
[1693988220619,1.2702016,25744.0,25743.0,3.13419863]
[1693988222664,1.2702016,25744.0,25743.0,4.25386762]
[1693988222933,1.2702016,25744.0,25743.0,3.13419863]
[1693988223308,1.2702016,25744.0,25743.0,4.25386783]
[1693988245709,1.2702016,25744.0,25743.0,2.35728863]
[1693988245925,1.2702016,25744.0,25743.0,0.004]
[1693988245926,4.09318602,25744.0,25743.0,0.004]
[1693988246340,4.47983129,25744.0,25743.0,0.004]
[1693988246766,4.24741674,25744.0,25743.0,0.004]
[1693988246944,4.34035262,25744.0,25743.0,0.004]
[1693988248499,4.47980135,25744.0,25740.0,1.46760495]
[1693988248700,1.05536741,25743.0,25740.0,1.46760495]
[1693988248903,0.28096651,25742.0,25740.0,1.46760495]
[1693988249314,0.07392526,25741.0,25740.0,1.46760495]
[1693988250618,0.07792526,25741.0,25740.0,1.46760495]
[1693988252502,1.18138314,25741.0,25739.0,0.03052753]
[1693988252700,1.18138314,25741.0,25738.0,1.554099]
[1693988252904,1.10745788,25741.0,25738.0,1.554095]
[1693988253102,0.33048788,25741.0,25738.0,1.554095]
[1693988254238,0.2713895,25740.0,25738.0,1.554095]
[1693988255060,0.2713895,25740.0,25738.0,0.777047]
[1693988255243,0.2713895,25740.0,25738.0,0.777058]
[1693988255467,0.2713895,25740.0,25738.0,1.58521346]
[1693988256071,0.2733895,25740.0,25738.0,1.58521346]
[1693988256569,0.2753895,25740.0,25738.0,1.58521346]
[1693988257824,0.2753895,25740.0,25738.0,0.80815246]
[1693988258431,0.2753895,25740.0,25738.0,1.58521346]
[1693988260996,0.2753895,25740.0,25738.0,0.03109446]
[1693988260997,0.27125175,25739.0,25738.0,0.03109446]
[1693988261166,0.27125175,25739.0,25737.0,0.777067]
[1693988261322,0.27125175,25739.0,25737.0,0.77709]
[1693988261524,0.27125175,25739.0,25737.0,1.554181]
[1693988262166,0.27325175,25739.0,25737.0,1.554181]
[1693988262359,0.27125175,25739.0,25737.0,1.554181]
[1693988262809,0.27525175,25739.0,25737.0,1.554181]
[1693988263173,0.27325175,25739.0,25737.0,1.554181]
[1693988263374,0.27325175,25739.0,25737.0,0.77709]
[1693988263925,0.27525175,25739.0,25737.0,0.77709]
[1693988264258,0.27525175,25739.0,25736.0,1.66497603]
[1693988264259,1.05228275,25739.0,25736.0,1.66497603]
[1693988264465,1.05228275,25739.0,25737.0,0.777091]
[1693988264676,0.28882351,25738.0,25737.0,0.777091]
[1693988265105,0.48928706,25738.0,25736.0,1.66497603]
[1693988265408,0.48928706,25738.0,25736.0,2.44208603]
[1693988265587,0.48928706,25738.0,25736.0,1.66497603]
[1693988265886,0.49128706,25738.0,25736.0,1.66497603]
[1693988266085,0.48928706,25738.0,25736.0,1.66497603]
[1693988266498,0.49128706,25738.0,25736.0,1.66497603]
[1693988266701,0.29282351,25738.0,25736.0,1.66497603]
[1693988267590,0.29282351,25738.0,25736.0,2.44209703]
[1693988272965,0.48282351,25738.0,25736.0,2.44209703]
[1693988278667,0.48282351,25738.0,25736.0,3.21921803]
[1693988279012,0.194,25738.0,25736.0,3.21921803]
[1693988281364,0.162451,25738.0,25736.0,3.21921803]
[1693988284192,0.164451,25738.0,25736.0,3.22121803]
[1693988284393,0.162451,25738.0,25736.0,3.21921803]
[1693988284813,0.166451,25738.0,25736.0,3.22321803]
[1693988285171,0.164451,25738.0,25736.0,3.22121803]
[1693988285755,0.166451,25738.0,25736.0,3.22321803]
[1693988286474,0.004,25738.0,25736.0,3.22321803]
[1693988291515,0.004,25738.0,25737.0,1.11994573]
[1693988291719,0.004,25738.0,25737.0,3.45121873]
[1693988292554,0.002,25738.0,25737.0,3.45121873]
[1693988292747,0.004,25738.0,25737.0,3.45321873]
[1693988293761,0.002,25738.0,25737.0,2.333273]
[1693988293968,0.004,25738.0,25737.0,2.335273]
[1693988294343,0.004,25738.0,25737.0,4.56670642]
[1693988294568,0.164,25738.0,25737.0,4.68750642]
[1693988297927,0.164,25738.0,25737.0,4.35311182]
[1693988307457,0.164,25738.0,25737.0,4.36469041]
[1693988309476,0.164,25738.0,25737.0,4.35311182]
[1693988321933,0.164,25738.0,25737.0,4.35306461]
[1693988324765,0.164,25738.0,25737.0,4.35306485]
[1693988324981,0.164,25738.0,25737.0,4.73971012]
[1693988336059,0.164,25738.0,25737.0,4.35306485]
[1693988342154,0.164,25738.0,25737.0,3.233164]
[1693988342335,0.164,25738.0,25737.0,4.35306733]
[1693988345270,0.164,25738.0,25737.0,4.35306896]
[1693988358745,0.164,25738.0,25737.0,4.23226896]
[1693988359155,0.164,25738.0,25737.0,4.61891423]
[1693988359333,0.164,25738.0,25737.0,4.23226896]
[1693988362083,0.164,25738.0,25737.0,4.23226892]
[1693988363149,0.164,25738.0,25737.0,4.35306892]
[1693988365176,0.164,25738.0,25737.0,4.35307049]
[1693988376841,0.164,25738.0,25737.0,4.85886465]
[1693988377049,0.04988945,25743.0,25738.0,0.16]
[1693988377258,0.04988945,25743.0,25742.0,0.1208]
[1693988377515,0.04988945,25743.0,25742.0,1.82933811]
[1693988377798,0.995,25744.0,25742.0,3.22856]
[1693988378031,0.09019757,25743.0,25742.0,3.10776]
[1693988378203,0.09219757,25743.0,25742.0,3.61520527]
[1693988378619,0.09519757,25743.0,25742.0,3.61920527]
[1693988378868,0.09319757,25743.0,25742.0,3.61920527]
[1693988379169,0.09319757,25743.0,25742.0,3.62320527]
[1693988380799,0.09319757,25743.0,25742.0,3.61920527]
[1693988381003,0.09519757,25743.0,25742.0,3.62320527]
[1693988388376,0.09519757,25743.0,25742.0,4.04097424]
[1693988388592,0.09519757,25743.0,25742.0,5.46059917]
[1693988388807,0.005,25743.0,25742.0,5.46059917]
[1693988393307,0.995,25744.0,25742.0,5.46059917]
[1693988393514,0.995,25744.0,25743.0,1.0009554]
[1693988393710,0.995,25744.0,25743.0,4.1085954]
[1693988394546,0.997,25744.0,25743.0,4.1085954]
[1693988394761,0.999,25744.0,25743.0,4.1155954]
[1693988394919,0.997,25744.0,25743.0,4.1155954]
[1693988395351,0.998,25744.0,25743.0,4.1215954]
[1693988396078,0.998,25744.0,25743.0,4.1415954]
[1693988396301,0.04948197,25748.0,25744.0,0.1208]
[1693988396425,0.04948197,25748.0,25747.0,0.1208]
[1693988396845,0.21870549,25750.0,25747.0,4.004745]
[1693988397074,0.21870549,25750.0,25749.0,0.1208]
[1693988397278,0.21870549,25750.0,25749.0,2.450987]
[1693988397720,0.21870549,25750.0,25749.0,3.227716]
[1693988398386,0.24270549,25750.0,25749.0,3.228716]
[1693988398540,0.024,25750.0,25749.0,3.228716]
[1693988399626,0.024,25750.0,25749.0,3.07548475]
[1693988400934,0.048,25750.0,25749.0,3.07648475]
[1693988401315,0.048,25750.0,25749.0,3.46313002]
[1693988401682,0.048,25750.0,25749.0,3.07648475]
[1693988402704,0.048,25750.0,25749.0,3.19728475]
[1693988406601,0.15315241,25750.0,25749.0,3.19728475]
[1693988406812,0.048,25750.0,25749.0,3.19728475]
[1693988414594,0.28676132,25750.0,25749.0,3.19728475]
[1693988414987,0.39191486,25750.0,25749.0,3.30075696]
[1693988418891,0.39191486,25750.0,25749.0,3.17995696]
[1693988419087,0.15315354,25750.0,25749.0,3.17995696]
[1693988420950,0.15315354,25750.0,25749.0,3.07648475]
[1693988432355,0.1203862,25750.0,25749.0,3.07648475]
[1693988433167,0.1203862,25750.0,25749.0,3.19728475]
[1693988436227,0.21331451,25750.0,25749.0,3.19728475]
[1693988444038,0.18931451,25750.0,25749.0,3.19628475]
[1693988444247,0.18931451,25750.0,25749.0,3.58293002]
[1693988444450,0.21331451,25750.0,25749.0,3.58393002]
[1693988444856,0.18931451,25750.0,25749.0,3.58293002]
[1693988445559,0.21331451,25750.0,25749.0,3.58393002]
[1693988445754,0.21331451,25750.0,25749.0,3.07648475]
[1693988445958,0.18931451,25750.0,25749.0,3.07548475]
[1693988446215,0.18931451,25750.0,25749.0,3.07648475]
[1693988446216,0.35270698,25750.0,25749.0,3.07648475]
[1693988447035,0.25977867,25750.0,25749.0,3.07648475]
[1693988448091,0.49590587,25750.0,25749.0,3.07648475]
[1693988459146,0.44948351,25750.0,25749.0,3.07648475]
[1693988459349,0.58887598,25750.0,25749.0,3.07648475]
[1693988459488,0.44948351,25750.0,25749.0,3.07648475]
[1693988469893,0.58887598,25750.0,25749.0,3.07648475]
[1693988470071,0.44948351,25750.0,25749.0,3.07648475]
[1693988470224,0.21335631,25750.0,25749.0,3.07648475]
[1693988470433,0.35274878,25750.0,25749.0,3.07648475]
[1693988471077,0.21335631,25750.0,25749.0,3.07648475]
[1693988471615,0.21335631,25750.0,25749.0,3.46313002]
[1693988478030,0.21335631,25750.0,25749.0,3.58393002]
[1693988485060,0.1203862,25750.0,25749.0,3.58393002]
[1693988486811,0.13938926,25750.0,25749.0,3.58393002]
[1693988504806,0.13938926,25750.0,25749.0,5.0033609]
[1693988505365,0.048,25750.0,25749.0,5.0033609]
[1693988506446,0.048,25750.0,25749.0,3.88393002]
[1693988509692,0.048,25750.0,25749.0,4.27057529]
[1693988514316,0.024,25750.0,25749.0,4.26957529]
[1693988514693,0.041,25750.0,25749.0,4.27057529]
[1693988515165,0.017,25750.0,25749.0,4.26957529]
[1693988515299,0.03,25750.0,25749.0,4.27057529]
[1693988517413,0.03,25750.0,25749.0,4.32808559]
[1693988519976,0.04936879,25753.0,25749.0,5.44746259]
[1693988520175,7.9e-07,25753.0,25752.0,0.3016]
[1693988520382,7.9e-07,25753.0,25752.0,6.76745027]
[1693988520579,0.16297011,25757.0,25752.0,6.76745027]
[1693988520811,0.16297011,25757.0,25756.0,0.1208]
[1693988520982,0.16297011,25757.0,25756.0,4.00339]
[1693988521351,0.16297011,25757.0,25756.0,4.39003527]
[1693988521724,0.16297011,25757.0,25756.0,4.54539227]
[1693988522378,0.18697011,25757.0,25756.0,4.54739227]
[1693988522524,0.44537783,25757.0,25756.0,4.54939227]
[1693988522723,0.53454503,25757.0,25756.0,4.33354264]
[1693988522930,0.30013731,25757.0,25756.0,4.33354264]
[1693988523734,0.2071672,25757.0,25756.0,4.33354264]
[1693988527812,0.2071672,25757.0,25756.0,4.45434264]
[1693988529747,0.118,25757.0,25756.0,4.45434264]
[1693988530500,0.118,25757.0,25756.0,4.75434264]
[1693988534482,0.118,25757.0,25756.0,4.785099]
[1693988536842,0.118,25757.0,25756.0,4.79703247]
[1693988567241,0.118,25757.0,25756.0,5.91615194]
[1693988567672,0.118,25757.0,25756.0,4.79703247]
[1693988583100,0.118,25757.0,25756.0,4.67623247]
[1693988583275,0.118,25757.0,25756.0,4.664299]
[1693988583514,0.118,25757.0,25756.0,4.24689737]
[1693988583719,0.20729699,25757.0,25756.0,4.24689737]
[1693988584306,0.47737219,25757.0,25756.0,4.24689737]
[1693988587683,0.47737219,25757.0,25756.0,3.47037937]
[1693988587891,0.47737219,25757.0,25756.0,2.39386137]
[1693988587892,0.70973477,25757.0,25756.0,2.39386137]
[1693988588094,0.61676466,25757.0,25756.0,2.39386137]
[1693988588304,0.70974731,25757.0,25756.0,2.39386137]
[1693988591244,0.57035484,25757.0,25756.0,1.61734337]
[1693988591458,0.70974731,25757.0,25756.0,1.61734337]
[1693988591864,0.70974731,25757.0,25756.0,2.39386137]
[1693988592259,0.57035484,25757.0,25756.0,2.39386137]
[1693988593197,0.57035484,25757.0,25756.0,1.61734337]
[1693988593720,0.57035484,25757.0,25756.0,2.39386137]
[1693988594559,0.57035484,25757.0,25756.0,3.17037937]
[1693988596729,0.57035484,25757.0,25756.0,2.39386137]
[1693988601370,0.57035484,25757.0,25756.0,1.61734337]
[1693988603709,0.30027964,25757.0,25756.0,1.61734337]
[1693988604109,0.59273738,25757.0,25756.0,1.61734337]
[1693988604317,0.30027964,25757.0,25756.0,1.61734337]
[1693988604511,0.30027964,25757.0,25756.0,0.84082537]
[1693988605592,0.30027964,25757.0,25756.0,0.935875]
[1693988606516,1.07676664,25757.0,25756.0,0.159357]
[1693988606723,0.30027964,25757.0,25756.0,0.935875]
[1693988606919,0.30027964,25757.0,25756.0,0.159357]
[1693988607150,1.07676664,25757.0,25756.0,0.159357]
[1693988607268,0.30027964,25757.0,25756.0,0.935875]
[1693988607694,1.07676664,25757.0,25756.0,0.159357]
[1693988608097,3.46799326,25757.0,25756.0,0.159357]
[1693988608304,3.60738573,25757.0,25756.0,0.159357]
[1693988608544,3.87650671,25757.0,25756.0,0.159357]
[1693988611074,4.38387273,25757.0,25756.0,0.159357]
[1693988611293,4.59843401,25757.0,25756.0,0.004]
[1693988612344,4.50387273,25757.0,25756.0,0.004]
[1693988612532,4.57135317,25757.0,25756.0,0.004]
[1693988614559,4.57135317,25757.0,25754.0,0.04508593]
[1693988614560,0.3342693,25756.0,25754.0,0.04508593]
[1693988614791,0.84923105,25755.0,25754.0,0.04508593]
[1693988614994,3.17887505,25755.0,25754.0,0.04508593]
[1693988615243,3.26646145,25755.0,25754.0,0.04508593]
[1693988615792,3.26646145,25755.0,25754.0,0.04608593]
[1693988616221,3.17364873,25755.0,25754.0,0.04608593]
[1693988616427,3.17364873,25755.0,25754.0,0.04508593]
[1693988616844,3.26646145,25755.0,25754.0,0.04508593]
[1693988617224,3.417516,25755.0,25754.0,0.04508593]
[1693988617422,3.51032872,25755.0,25751.0,2.329961]
[1693988617662,2.00480135,25754.0,25751.0,2.329961]
[1693988617876,0.38664527,25753.0,25751.0,2.329961]
[1693988618216,0.38664527,25753.0,25752.0,0.155406]
[1693988618420,0.38664527,25753.0,25752.0,0.932044]
[1693988618893,0.38664527,25753.0,25752.0,1.708682]
[1693988619138,0.63561833,25753.0,25752.0,1.708682]
[1693988619340,0.63761833,25753.0,25752.0,1.708682]
[1693988619547,0.63561833,25753.0,25752.0,1.708682]
[1693988619825,0.63961833,25753.0,25752.0,2.52932]
[1693988620501,0.004,25753.0,25752.0,3.305958]
[1693988631425,0.09151931,25753.0,25752.0,3.305958]
[1693988643873,0.09151931,25753.0,25752.0,2.52932]
[1693988644089,0.33279864,25753.0,25752.0,0.199406]
[1693988644260,1.10940664,25753.0,25752.0,0.199406]
[1693988644882,1.42953428,25753.0,25752.0,0.199406]
[1693988645465,3.49019555,25753.0,25752.0,0.199406]
[1693988646169,3.48107608,25753.0,25752.0,0.199406]
[1693988646377,3.67663842,25753.0,25752.0,0.199406]
[1693988646577,3.57394003,25753.0,25752.0,0.199406]
[1693988646789,3.38821214,25753.0,25752.0,0.199406]
[1693988647011,3.85766553,25753.0,25752.0,0.199406]
[1693988647624,3.85766553,25753.0,25752.0,0.044]
[1693988647829,3.67193764,25753.0,25752.0,0.044]
[1693988649218,3.85766553,25753.0,25752.0,0.044]
[1693988649621,3.67193764,25753.0,25752.0,0.044]
[1693988650850,3.67193764,25753.0,25750.0,0.08509116]
[1693988651053,0.59609084,25752.0,25750.0,0.08509116]
[1693988651252,0.62352964,25751.0,25750.0,0.08509116]
[1693988651414,0.61931174,25751.0,25750.0,0.08509116]
[1693988652213,0.61931174,25751.0,25750.0,0.09209116]
[1693988652426,3.55401883,25752.0,25750.0,0.08509116]
[1693988653420,2.77735183,25752.0,25750.0,0.86178616]
[1693988653621,0.28467184,25751.0,25750.0,0.86178616]
[1693988654026,0.28667184,25751.0,25750.0,0.86878616]
[1693988654729,0.60879948,25751.0,25750.0,0.87078616]
[1693988655067,0.28867184,25751.0,25750.0,0.87078616]
[1693988656265,0.28867184,25751.0,25750.0,0.09409116]
[1693988656512,1.06533984,25751.0,25750.0,0.09409116]
[1693988656720,0.28867184,25751.0,25750.0,0.09409116]
[1693988659182,0.28867184,25751.0,25750.0,0.87079016]
[1693988659767,0.28867184,25751.0,25750.0,1.64748916]
[1693988661562,0.37622919,25751.0,25750.0,1.64748916]
[1693988662860,0.88367446,25751.0,25750.0,0.09409116]
[1693988663061,0.88367446,25751.0,25750.0,0.87079016]
[1693988663496,1.16659415,25751.0,25750.0,0.87079016]
[1693988663848,0.88367446,25751.0,25750.0,1.64748916]
[1693988664466,0.88367446,25751.0,25750.0,2.42418816]
[1693988666532,0.88367446,25751.0,25750.0,3.20088716]
[1693988666758,0.76287446,25751.0,25750.0,3.20088716]
[1693988668165,0.09155735,25751.0,25750.0,3.20088716]
[1693988671390,0.09155735,25751.0,25750.0,3.70833243]
[1693988672025,0.004,25751.0,25750.0,3.70833243]
[1693988672724,0.004,25751.0,25750.0,3.32168716]
[1693988673140,0.09131229,25751.0,25750.0,3.32168716]
[1693988673552,0.004,25751.0,25750.0,3.32168716]
[1693988674871,0.09126733,25751.0,25750.0,3.32168716]
[1693988675279,0.004,25751.0,25750.0,3.32168716]
[1693988675661,0.004,25751.0,25750.0,3.70833243]
[1693988692480,0.004,25751.0,25750.0,3.32168716]
[1693988693145,0.09030987,25751.0,25750.0,3.32168716]
[1693988693386,0.004,25751.0,25750.0,3.32168716]
[1693988694250,0.004,25751.0,25750.0,3.70833243]
[1693988694525,0.00423905,25751.0,25750.0,3.32168716]
[1693988696899,0.00423905,25751.0,25750.0,4.44104963]
[1693988701264,0.00423905,25751.0,25750.0,3.32168716]
[1693988701441,0.00430108,25751.0,25750.0,3.32168716]
[1693988702519,0.00430108,25751.0,25750.0,4.44107366]
[1693988705639,0.27944122,25751.0,25750.0,2.42418816]
[1693988706229,0.27944122,25751.0,25750.0,3.20088716]
[1693988706454,0.36565601,25751.0,25750.0,3.20088716]
[1693988706642,0.36565601,25751.0,25750.0,2.42418816]
[1693988707209,0.36565601,25751.0,25750.0,3.20088716]
[1693988707415,0.36565601,25751.0,25750.0,2.42418816]
[1693988709189,0.36565601,25751.0,25750.0,3.20088716]
[1693988711155,0.36565601,25751.0,25750.0,2.42418816]
[1693988734711,0.36565601,25751.0,25750.0,3.20088716]
[1693988735270,0.36565601,25751.0,25750.0,2.42418816]
[1693988737020,0.36565601,25751.0,25750.0,3.20088716]
[1693988738453,0.36565601,25751.0,25750.0,2.42418816]
[1693988745647,0.45854551,25751.0,25750.0,2.42418816]
[1693988763609,0.26177125,25751.0,25750.0,0.87079016]
[1693988763808,0.26177125,25751.0,25750.0,0.09409116]
[1693988763809,2.13352551,25751.0,25750.0,0.09409116]
[1693988764012,1.17107851,25751.0,25750.0,0.09409116]
[1693988764222,1.35716334,25751.0,25750.0,0.09409116]
[1693988764468,0.64169365,25751.0,25750.0,0.87079016]
[1693988764676,0.45560882,25751.0,25750.0,0.87079016]
[1693988765858,1.23227682,25751.0,25750.0,0.09409116]
[1693988766883,0.45560882,25751.0,25750.0,0.87079016]
[1693988767223,1.32528719,25751.0,25750.0,0.09409116]
[1693988767565,2.4437639,25751.0,25750.0,0.09409116]
[1693988767986,2.10195519,25751.0,25750.0,0.09409116]
[1693988768190,1.32528719,25751.0,25750.0,0.09409116]
[1693988769718,1.32528719,25751.0,25750.0,0.87079016]
[1693988770478,1.32528719,25751.0,25750.0,0.09409116]
[1693988771385,2.00894482,25751.0,25750.0,0.09409116]
[1693988771853,1.86938063,25751.0,25750.0,0.09409116]
[1693988772053,2.00885623,25751.0,25750.0,0.09409116]
[1693988772253,1.23218823,25751.0,25750.0,0.09409116]
[1693988772451,2.00885623,25751.0,25750.0,0.09409116]
[1693988772918,2.10183545,25751.0,25750.0,0.09409116]
[1693988773115,1.32516745,25751.0,25750.0,0.09409116]
[1693988773319,2.48848072,25751.0,25750.0,0.09409116]
[1693988774069,2.86891647,25751.0,25750.0,0.09409116]
[1693988774681,2.48848072,25751.0,25750.0,0.09409116]
[1693988775260,1.71181272,25751.0,25750.0,0.09409116]
[1693988777098,1.71181272,25751.0,25750.0,0.87079016]
[1693988777837,0.79566912,25751.0,25750.0,0.87079016]
[1693988778252,0.93514472,25751.0,25750.0,0.87079016]
[1693988780401,1.71181272,25751.0,25750.0,0.09409116]
[1693988780624,1.57233712,25751.0,25750.0,0.09409116]
[1693988781755,0.79566912,25751.0,25750.0,0.87079016]
[1693988784533,1.17609917,25751.0,25750.0,1.64748916]
[1693988787690,1.17609917,25751.0,25750.0,0.87079016]
[1693988788693,1.17609917,25751.0,25750.0,1.64748916]
[1693988789756,0.79566912,25751.0,25750.0,1.64748916]
[1693988794639,0.93514472,25751.0,25750.0,1.64748916]
[1693988796408,0.93514472,25751.0,25750.0,0.87079016]
[1693988798656,0.79566912,25751.0,25750.0,0.87079016]
[1693988798832,0.93514472,25751.0,25750.0,0.87079016]
[1693988801402,0.8421655,25751.0,25750.0,0.87079016]
[1693988802366,0.93515536,25751.0,25750.0,0.87079016]
[1693988803528,0.8421655,25751.0,25750.0,0.87079016]
[1693988803976,0.8421655,25751.0,25750.0,1.64748916]
[1693988805161,0.8421655,25751.0,25750.0,1.64879796]
[1693988809181,1.02813296,25751.0,25750.0,1.64879796]
[1693988809368,0.8421655,25751.0,25750.0,1.64879796]
[1693988809580,1.02813296,25751.0,25750.0,1.64879796]
[1693988813051,0.88865736,25751.0,25750.0,1.64879796]
[1693988814784,0.50201209,25751.0,25750.0,1.64879796]
[1693988814992,0.23007873,25751.0,25750.0,3.20219596]
[1693988815191,0.23007873,25751.0,25750.0,3.56554676]
[1693988815810,0.18355699,25751.0,25750.0,3.56554676]
[1693988819116,0.09051587,25751.0,25750.0,3.56554676]
[1693988820332,0.09051587,25751.0,25750.0,3.32299596]
[1693988832482,0.09051587,25751.0,25750.0,3.20219596]
[1693988843107,0.09051587,25751.0,25750.0,3.32299596]
[1693988853123,0.09051587,25751.0,25750.0,3.20219596]
[1693988853328,0.09051587,25751.0,25750.0,2.42549696]
[1693988853541,0.38146206,25751.0,25750.0,2.42549696]
[1693988874376,0.38146206,25751.0,25750.0,3.20219596]
[1693988874583,0.38122301,25751.0,25750.0,3.20219596]
[1693988877505,0.381478,25751.0,25750.0,3.20219596]
[1693988877968,0.09053181,25751.0,25750.0,3.20219596]
[1693988881349,0.09046978,25751.0,25750.0,3.20219596]
[1693988883256,0.34951039,25751.0,25750.0,3.20219596]
[1693988884029,0.44255151,25751.0,25750.0,3.20219596]
[1693988886448,0.35633672,25751.0,25750.0,3.20219596]
[1693988886650,0.43359949,25751.0,25750.0,3.20219596]
[1693988887688,0.34055837,25751.0,25750.0,3.20219596]
[1693988888221,0.08151776,25751.0,25750.0,3.53449556]
[1693988889489,0.08151776,25751.0,25750.0,3.20219596]
[1693988891651,0.17455888,25751.0,25750.0,3.20219596]
[1693988894351,0.08151776,25751.0,25750.0,3.20219596]
[1693988895721,0.17455888,25751.0,25750.0,3.20219596]
[1693988895925,0.08151776,25751.0,25750.0,3.20219596]
[1693988896828,0.17455888,25751.0,25750.0,3.20219596]
[1693988900801,0.08151776,25751.0,25750.0,3.20219596]
[1693988913833,0.08151776,25751.0,25750.0,3.20219596]
[1693988920441,0.08158785,25751.0,25750.0,3.20219596]
[1693988920841,0.5441367,25751.0,25750.0,0.09539996]
[1693988921046,1.8051626,25751.0,25750.0,0.09539996]
[1693988921254,2.23977084,25751.0,25750.0,0.09539996]
[1693988922075,2.14672972,25751.0,25750.0,0.09539996]
[1693988922670,1.85168434,25751.0,25750.0,0.09539996]
[1693988924673,1.33394735,25751.0,25750.0,0.09539996]
[1693988926862,1.42691716,25751.0,25750.0,0.09539996]
[1693988927056,1.33394735,25751.0,25750.0,0.09539996]
[1693988927727,1.55462651,25751.0,25750.0,0.09539996]
[1693988927859,2.33129451,25751.0,25750.0,0.09539996]
[1693988928069,2.57477384,25751.0,25750.0,0.09539996]
[1693988929997,3.4444444,25751.0,25750.0,0.0103088]
[1693988930204,3.20096507,25751.0,25747.0,2.22630177]
[1693988930399,0.86624256,25750.0,25747.0,2.22630177]
[1693988930601,0.23807716,25749.0,25747.0,2.22630177]
[1693988930836,0.31885943,25749.0,25748.0,0.155427]
[1693988931039,0.31885943,25749.0,25748.0,0.932186]
[1693988931520,0.31919472,25749.0,25748.0,0.932186]
[1693988932667,0.31919472,25749.0,25748.0,1.708945]
[1693988933074,0.32319472,25749.0,25748.0,1.708945]
[1693988934433,0.08511756,25749.0,25748.0,1.708945]
[1693988934828,0.08511756,25749.0,25748.0,2.485704]
[1693988935450,0.08511756,25749.0,25748.0,3.262463]
[1693988976948,0.17806958,25749.0,25748.0,3.262463]
[1693988985502,0.46485233,25749.0,25748.0,3.262463]
[1693988992730,0.46485233,25749.0,25748.0,2.485704]
[1693989001478,0.46485233,25749.0,25748.0,3.262463]
[1693989002779,0.08511756,25749.0,25748.0,3.262463]
[1693989003713,0.08511756,25749.0,25748.0,4.15655354]
[1693989003903,5.6e-07,25749.0,25748.0,4.45655354]
[1693989007910,5.6e-07,25749.0,25748.0,4.5497855]
[1693989008616,5.6e-07,25749.0,25748.0,4.45655354]
[1693989023269,5.6e-07,25749.0,25748.0,4.52777354]
[1693989023495,5.6e-07,25749.0,25748.0,4.53371354]
[1693989023700,5.6e-07,25749.0,25748.0,4.53287354]
[1693989023903,5.6e-07,25749.0,25748.0,4.53251354]